bitfinex/quotes_BTCUSD_20220111
["timestamp","ask_amount","ask_price","bid_price","bid_amount"]
[1641873457795,0.33664353,42240.0,42237.0,0.00071496]
[1641873458197,0.370421,42239.0,42237.0,0.00071496]
[1641873458598,0.420421,42239.0,42237.0,0.00071496]
[1641873459039,0.420421,42239.0,42229.0,0.69343466]
[1641873459040,0.420421,42239.0,42236.0,0.00071498]
[1641873459241,0.33080873,42238.0,42236.0,0.00071498]
[1641873459438,0.33276442,42238.0,42236.0,0.00071498]
[1641873460239,0.33276442,42238.0,42235.0,0.00071499]
[1641873460441,0.38664353,42240.0,42235.0,0.00071499]
[1641873460640,0.32495886,42239.0,42235.0,0.00071499]
[1641873460842,0.38664353,42240.0,42235.0,0.00071499]
[1641873461040,0.32833024,42239.0,42235.0,0.00071499]
[1641873461246,0.00120894,42240.0,42235.0,0.00071499]
[1641873461441,0.3004,42243.0,42235.0,0.00071499]
[1641873461641,0.05,42242.0,42235.0,0.00071499]
[1641873461942,0.3504,42243.0,42235.0,0.00071499]
[1641873462342,0.3504,42243.0,42237.0,0.00021904]
[1641873462343,0.30509852,42241.0,42237.0,0.00021904]
[1641873462590,0.30509852,42241.0,42237.0,0.00093402]
[1641873462591,0.35509852,42241.0,42237.0,0.00093402]
[1641873462792,0.40509852,42241.0,42237.0,0.00093402]
[1641873462992,0.30509852,42241.0,42237.0,0.00093402]
[1641873464395,0.370421,42240.0,42237.0,0.00093402]
[1641873464594,0.33384214,42239.0,42237.0,0.00093402]
[1641873464795,0.34154316,42242.0,42237.0,0.00093402]
[1641873465296,0.39154316,42242.0,42237.0,0.00093402]
[1641873465895,0.31600559,42240.0,42237.0,0.00093402]
[1641873466096,0.31600559,42240.0,42237.0,0.00093401]
[1641873467139,0.05121297,42242.0,42239.0,0.0002187]
[1641873467342,0.3004,42243.0,42239.0,0.0002187]
[1641873467540,0.24,42244.0,42240.0,0.0473]
[1641873468343,0.24,42244.0,42241.0,0.58986571]
[1641873468539,0.24,42244.0,42241.0,0.64486384]
[1641873469340,0.24,42244.0,42241.0,0.3446041]
[1641873469539,0.24,42244.0,42241.0,0.2854191]
[1641873470589,0.24,42244.0,42241.0,0.3034191]
[1641873471190,0.24,42244.0,42241.0,0.75360091]
[1641873471791,0.24,42244.0,42241.0,0.73560091]
[1641873472191,0.24,42244.0,42243.0,0.35021804]
[1641873472591,0.24,42244.0,42243.0,0.00021804]
[1641873473941,0.24,42244.0,42243.0,0.30021804]
[1641873474145,0.24,42244.0,42243.0,0.00021804]
[1641873474543,0.24,42244.0,42243.0,0.02021804]
[1641873475946,0.24,42244.0,42243.0,0.30021804]
[1641873476445,0.24,42244.0,42243.0,0.00021804]
[1641873476650,0.24,42244.0,42243.0,0.02121804]
[1641873477894,0.24,42244.0,42243.0,1.29751804]
[1641873478093,0.24,42244.0,42243.0,1.57525804]
[1641873478695,0.24,42244.0,42243.0,1.94411284]
[1641873479296,0.24,42244.0,42243.0,1.65143404]
[1641873479895,0.16600001,42244.0,42243.0,1.6842091]
[1641873480094,0.00712928,42246.0,42244.0,1.3]
[1641873480294,0.00712928,42246.0,42243.0,0.4342091]
[1641873480295,0.00712928,42246.0,42245.0,1.89373313]
[1641873480694,0.00712928,42246.0,42245.0,1.94350819]
[1641873481343,0.03448016,42253.0,42246.0,1.35]
[1641873481543,0.26037599,42260.0,42248.0,0.059174]
[1641873481544,0.00129633,42260.0,42248.0,0.059174]
[1641873481744,1.1189,42261.0,42253.0,0.059164]
[1641873481944,0.00051976,42263.0,42254.0,0.0473]
[1641873482141,0.00051976,42263.0,42259.0,0.28501449]
[1641873482342,0.27365043,42263.0,42260.0,0.0473]
[1641873482944,0.27313067,42263.0,42260.0,0.0473]
[1641873484547,0.27313067,42263.0,42260.0,0.0583]
[1641873485799,0.27313067,42263.0,42260.0,0.0473]
[1641873486599,0.27313067,42263.0,42260.0,0.0583]
[1641873486800,0.370421,42262.0,42260.0,0.0583]
[1641873487900,0.27365064,42263.0,42260.0,0.0583]
[1641873488100,0.24,42262.0,42260.0,0.0473]
[1641873488750,0.24,42262.0,42260.0,0.0583]
[1641873489343,0.24,42262.0,42260.0,0.50163131]
[1641873490045,0.24,42262.0,42260.0,0.49063131]
[1641873490642,0.24,42262.0,42260.0,0.50163131]
[1641873491941,0.24,42262.0,42260.0,0.49063131]
[1641873492143,0.24,42262.0,42261.0,0.00025089]
[1641873492342,0.24,42262.0,42261.0,0.04755089]
[1641873492595,0.95975619,42262.0,42261.0,0.05855089]
[1641873494089,0.95975619,42262.0,42261.0,0.04755089]
[1641873494589,0.58933519,42262.0,42261.0,0.05855089]
[1641873494788,0.24,42262.0,42261.0,0.05855089]
[1641873495789,0.24,42262.0,42261.0,0.01125089]
[1641873495988,0.24,42262.0,42261.0,0.00025089]
[1641873496644,0.58279248,42262.0,42261.0,0.01125089]
[1641873497045,0.24,42262.0,42261.0,0.01125089]
[1641873497944,0.24,42262.0,42261.0,0.00025089]
[1641873498146,0.24,42262.0,42261.0,0.28463345]
[1641873498744,0.24,42262.0,42261.0,0.29563345]
[1641873499991,0.24,42262.0,42261.0,0.28463345]
[1641873500297,0.24,42262.0,42261.0,0.33193345]
[1641873500692,0.24,42262.0,42261.0,0.34293345]
[1641873500992,0.24,42262.0,42261.0,0.05855089]
[1641873501992,0.24,42262.0,42261.0,0.04755089]
[1641873502796,0.24,42262.0,42261.0,0.05855089]
[1641873503841,0.24,42262.0,42261.0,0.05131674]
[1641873504039,0.24,42262.0,42261.0,0.04031674]
[1641873504639,0.24,42262.0,42261.0,0.05131674]
[1641873506038,0.24,42262.0,42261.0,0.04031674]
[1641873506641,0.24,42262.0,42261.0,0.05131674]
[1641873507140,0.24,42262.0,42261.0,0.05154673]
[1641873508396,0.24,42262.0,42261.0,0.04054673]
[1641873508797,0.24,42262.0,42261.0,0.05154673]
[1641873509898,0.24,42262.0,42261.0,0.04054673]
[1641873510697,0.24,42262.0,42261.0,0.05154673]
[1641873511942,0.24,42262.0,42261.0,0.04054673]
[1641873512743,0.24,42262.0,42261.0,0.01122999]
[1641873513947,0.24,42262.0,42261.0,0.00022999]
[1641873514747,0.24,42262.0,42261.0,0.01122999]
[1641873515998,0.24,42262.0,42261.0,0.00022999]
[1641873516399,0.24,42262.0,42261.0,0.04752999]
[1641873516601,0.24,42262.0,42261.0,0.82760598]
[1641873516799,0.24,42262.0,42261.0,0.83860598]
[1641873517002,0.00051999,42264.0,42261.0,1.40852999]
[1641873517203,0.00051999,42264.0,42263.0,1.62878037]
[1641873517405,0.00051999,42264.0,42263.0,1.67608037]
[1641873517605,0.00051999,42264.0,42263.0,1.77608037]
[1641873517801,0.0074165,42266.0,42263.0,2.13450653]
[1641873517802,0.00793651,42266.0,42263.0,2.13450653]
[1641873518000,0.00793651,42266.0,42265.0,1.627555]
[1641873518201,0.00793651,42266.0,42265.0,1.674855]
[1641873518601,0.00793651,42266.0,42265.0,1.774855]
[1641873518846,0.00793651,42266.0,42265.0,1.789855]
[1641873519047,0.0074165,42266.0,42265.0,2.48581336]
[1641873519249,0.0074165,42266.0,42265.0,2.5414842]
[1641873519649,0.0074165,42266.0,42265.0,2.4414842]
[1641873520047,0.0074165,42266.0,42265.0,2.4264842]
[1641873520449,0.0074165,42266.0,42265.0,0.324855]
[1641873520649,0.0074165,42266.0,42265.0,0.69670884]
[1641873521054,0.0074165,42266.0,42265.0,0.341855]
[1641873521449,0.00727612,42266.0,42265.0,0.341855]
[1641873521852,0.00699536,42266.0,42265.0,0.341855]
[1641873522151,0.00699536,42266.0,42265.0,0.324855]
[1641873522353,0.00699536,42266.0,42265.0,0.32508421]
[1641873522794,0.00699536,42266.0,42265.0,0.34208421]
[1641873523796,0.00699536,42266.0,42265.0,1.09349128]
[1641873523995,0.00699536,42266.0,42265.0,1.07649128]
[1641873524797,0.00699536,42266.0,42265.0,1.09249128]
[1641873525998,0.00699536,42266.0,42265.0,1.02104257]
[1641873526258,0.00699536,42266.0,42265.0,0.32508421]
[1641873526448,0.00199536,42266.0,42265.0,0.32508421]
[1641873526649,0.00199536,42266.0,42265.0,0.34208421]
[1641873527248,0.00199536,42266.0,42265.0,1.09611561]
[1641873527451,0.00051961,42268.0,42266.0,1.3877925]
[1641873527649,0.00207811,42274.0,42268.0,0.3]
[1641873527849,0.00075732,42274.0,42269.0,0.324819]
[1641873528451,0.25776128,42274.0,42269.0,0.324819]
[1641873528650,0.25700396,42274.0,42269.0,0.34708887]
[1641873529149,0.24200396,42274.0,42269.0,0.34708887]
[1641873529750,0.00128107,42277.0,42269.0,0.34708887]
[1641873530598,0.00128107,42277.0,42269.0,0.33608887]
[1641873530798,0.34106327,42277.0,42269.0,0.34608887]
[1641873531001,0.00058012,42276.0,42271.0,0.00085292]
[1641873531201,0.00058012,42276.0,42272.0,0.3723709]
[1641873531999,0.00058012,42276.0,42272.0,0.0473]
[1641873532203,0.25988783,42273.0,42272.0,0.0473]
[1641873532401,0.00041761,42276.0,42272.0,0.0473]
[1641873532802,0.00041761,42276.0,42272.0,0.0593]
[1641873533205,0.30423172,42276.0,42272.0,0.0593]
[1641873533403,0.25866053,42274.0,42272.0,0.0593]
[1641873534048,0.00712383,42275.0,42272.0,0.0473]
[1641873534849,0.00712383,42275.0,42272.0,0.0583]
[1641873536854,0.00712383,42275.0,42272.0,0.0693]
[1641873537252,0.00712383,42275.0,42274.0,0.00022747]
[1641873538696,0.00712383,42275.0,42274.0,0.01022747]
[1641873538898,0.37754483,42275.0,42274.0,0.01022747]
[1641873540100,0.37754483,42275.0,42274.0,0.00022747]
[1641873540297,0.00712383,42275.0,42274.0,0.00022747]
[1641873540498,0.37754483,42275.0,42274.0,0.00022747]
[1641873540996,0.39254483,42275.0,42274.0,0.01022747]
[1641873541645,0.02212383,42275.0,42274.0,0.01022747]
[1641873542046,0.00712383,42275.0,42274.0,0.00022747]
[1641873542745,0.01712383,42275.0,42274.0,0.01022747]
[1641873544146,0.00212383,42275.0,42274.0,0.00022747]
[1641873544748,0.00212383,42275.0,42274.0,0.01022747]
[1641873544749,0.39954483,42275.0,42274.0,0.01022747]
[1641873544997,0.39954483,42275.0,42274.0,0.00928288]
[1641873545200,0.74954483,42275.0,42274.0,0.00928288]
[1641873545797,0.39954483,42275.0,42274.0,0.00928288]
[1641873545997,0.75513653,42275.0,42271.0,0.00071772]
[1641873546600,0.75513653,42275.0,42271.0,0.00071771]
[1641873546799,0.76813653,42275.0,42271.0,0.00871771]
[1641873547201,0.76813653,42275.0,42274.0,0.00025022]
[1641873547599,0.38554483,42275.0,42274.0,0.00025022]
[1641873548001,0.37254483,42275.0,42274.0,0.00025022]
[1641873548848,0.38454483,42275.0,42274.0,0.00525022]
[1641873550148,0.38454483,42275.0,42274.0,0.00025022]
[1641873550149,0.37254483,42275.0,42274.0,0.00025022]
[1641873550848,0.37254483,42275.0,42274.0,0.00425022]
[1641873550849,0.012,42275.0,42274.0,0.00425022]
[1641873551049,0.01912397,42275.0,42274.0,0.00425022]
[1641873551447,0.38951197,42275.0,42274.0,0.00425022]
[1641873552048,0.37751197,42275.0,42274.0,0.00025022]
[1641873552250,0.37751197,42275.0,42271.0,0.00096769]
[1641873552700,0.37751197,42275.0,42271.0,0.0016834]
[1641873552900,0.37751197,42275.0,42271.0,0.00896593]
[1641873552901,0.01812397,42275.0,42271.0,0.00896593]
[1641873553300,0.01812397,42275.0,42271.0,0.00880345]
[1641873553800,0.01812397,42275.0,42271.0,0.00880344]
[1641873554001,0.00712397,42275.0,42271.0,0.00080344]
[1641873554805,0.01812397,42275.0,42271.0,0.00980344]
[1641873555004,0.01812397,42275.0,42271.0,0.0098033]
[1641873556256,0.00712397,42275.0,42271.0,0.0008053]
[1641873556849,0.02112397,42275.0,42271.0,0.0098053]
[1641873557247,0.02112397,42275.0,42273.0,0.0002342]
[1641873558050,0.00712397,42275.0,42273.0,0.0002342]
[1641873558853,0.00712397,42275.0,42274.0,0.4973]
[1641873559251,0.00712397,42275.0,42274.0,0.777664]
[1641873560904,0.00712397,42275.0,42274.0,0.788664]
[1641873562102,0.00712397,42275.0,42274.0,0.777664]
[1641873562300,0.00712397,42275.0,42274.0,0.77789797]
[1641873562901,0.00712397,42275.0,42274.0,0.79089797]
[1641873564248,0.00712397,42275.0,42274.0,0.77789797]
[1641873564450,0.00712397,42275.0,42274.0,0.04753397]
[1641873564849,0.00712397,42275.0,42274.0,0.06053397]
[1641873565355,0.3309785,42275.0,42274.0,0.06053397]
[1641873565552,0.00712397,42275.0,42274.0,0.01323397]
[1641873565950,0.37751197,42275.0,42274.0,0.01323397]
[1641873566352,0.00712397,42275.0,42274.0,0.01323397]
[1641873566754,0.00712397,42275.0,42274.0,0.00023397]
[1641873566954,0.00712397,42275.0,42274.0,0.01323397]
[1641873568002,0.00712397,42275.0,42274.0,0.00023397]
[1641873568800,0.00712397,42275.0,42274.0,0.01223397]
[1641873570205,0.00712397,42275.0,42274.0,0.00023397]
[1641873570805,0.00712397,42275.0,42274.0,0.01223397]
[1641873572148,0.00712397,42275.0,42274.0,0.00023397]
[1641873572949,0.00712397,42275.0,42274.0,0.01123397]
[1641873574152,0.00712397,42275.0,42274.0,0.00023397]
[1641873574353,0.37751197,42275.0,42274.0,0.00023397]
[1641873575007,0.37751197,42275.0,42274.0,0.01023397]
[1641873575609,0.00712397,42275.0,42274.0,0.01023397]
[1641873576214,0.00712397,42275.0,42274.0,0.00023397]
[1641873576809,0.00712397,42275.0,42274.0,0.01023397]
[1641873578211,0.00712397,42275.0,42274.0,0.00023397]
[1641873578846,0.00712397,42275.0,42274.0,0.01023397]
[1641873580246,0.00712397,42275.0,42274.0,0.00023397]
[1641873580849,0.00712397,42275.0,42274.0,0.01023397]
[1641873581247,0.37751197,42275.0,42274.0,0.01023397]
[1641873581748,0.00712397,42275.0,42274.0,0.01023397]
[1641873582799,0.00712397,42275.0,42274.0,0.00023397]
[1641873582999,0.00712397,42275.0,42274.0,0.01023397]
[1641873583802,0.00712397,42275.0,42274.0,0.36023397]
[1641873584202,0.00712397,42275.0,42274.0,0.35023397]
[1641873585001,0.00712397,42275.0,42274.0,0.01223397]
[1641873586250,0.00712397,42275.0,42274.0,0.00023397]
[1641873586947,0.00712397,42275.0,42274.0,0.01223397]
[1641873587749,0.00712397,42275.0,42274.0,0.31223397]
[1641873588149,0.00712397,42275.0,42274.0,0.00023397]
[1641873588952,0.00712397,42275.0,42274.0,0.01323397]
[1641873589150,0.25803069,42275.0,42274.0,0.01323397]
[1641873589351,0.00712397,42275.0,42274.0,0.01323397]
[1641873590100,0.00712397,42275.0,42274.0,0.00023397]
[1641873590298,0.00049108,42277.0,42274.0,0.00023397]
[1641873590700,0.00049108,42277.0,42275.0,0.34196284]
[1641873591003,0.16594131,42279.0,42276.0,1.50876459]
[1641873591004,0.00049109,42278.0,42276.0,1.50876459]
[1641873591202,0.00049109,42278.0,42277.0,1.11164522]
[1641873591409,0.00049109,42278.0,42277.0,1.43928622]
[1641873591604,0.00049109,42278.0,42277.0,1.527641]
[1641873592301,0.0014911,42280.0,42277.0,1.527641]
[1641873592501,0.0014911,42280.0,42278.0,0.280329]
[1641873592702,0.0014911,42280.0,42279.0,1.2473]
[1641873592901,0.0014911,42280.0,42279.0,1.527621]
[1641873593502,0.001,42280.0,42279.0,1.527621]
[1641873594751,0.001,42280.0,42279.0,0.327621]
[1641873594950,0.001,42280.0,42279.0,0.341621]
[1641873596150,0.001,42280.0,42279.0,0.327621]
[1641873596952,0.001,42280.0,42279.0,0.343621]
[1641873597153,0.001,42280.0,42279.0,0.34385381]
[1641873597999,0.001,42280.0,42279.0,0.70782024]
[1641873598201,0.001,42280.0,42279.0,0.69182024]
[1641873599003,0.001,42280.0,42279.0,0.70682024]
[1641873599703,0.001,42280.0,42279.0,0.80682024]
[1641873600102,0.001,42280.0,42279.0,0.79182024]
[1641873600503,0.001,42280.0,42279.0,0.69182024]
[1641873600905,0.001,42280.0,42279.0,0.70582024]
[1641873601108,0.001,42283.0,42280.0,1.35]
[1641873601358,0.0095821,42294.0,42283.0,1.35]
[1641873601556,0.0095821,42294.0,42287.0,0.59256168]
[1641873601755,0.0095821,42294.0,42293.0,0.00127514]
[1641873601952,0.0095821,42294.0,42293.0,0.59857514]
[1641873602153,0.0095821,42294.0,42293.0,1.50144329]
[1641873602552,0.0095821,42294.0,42293.0,1.84430558]
[1641873602953,0.0087677,42298.0,42294.0,1.35]
[1641873603154,1.70691071,42306.0,42296.0,1.35]
[1641873603155,0.60291071,42306.0,42296.0,1.35]
[1641873603357,0.59791071,42306.0,42299.0,0.5913]
[1641873603558,0.59791071,42308.0,42300.0,0.0473]
[1641873603754,0.59791071,42308.0,42301.0,0.23559843]
[1641873603958,0.59791071,42308.0,42303.0,0.059096]
[1641873604155,0.70339613,42310.0,42306.0,0.81441569]
[1641873604359,0.70339613,42310.0,42306.0,0.68060649]
[1641873604556,0.0175283,42313.0,42306.0,0.68060649]
[1641873604754,0.04103991,42307.0,42306.0,0.67060649]
[1641873605004,0.04103991,42307.0,42306.0,0.69382169]
[1641873605805,0.04103991,42307.0,42306.0,1.05590006]
[1641873606007,0.04103991,42307.0,42306.0,1.32537471]
[1641873606508,0.04103991,42307.0,42306.0,0.96329634]
[1641873606705,0.04103991,42307.0,42306.0,0.95129634]
[1641873606910,0.04103991,42307.0,42306.0,0.96329634]
[1641873607105,0.04103991,42307.0,42306.0,0.96352289]
[1641873607306,0.04103991,42307.0,42306.0,0.69534619]
[1641873608307,0.03603991,42307.0,42306.0,0.69534619]
[1641873608508,0.03603991,42307.0,42306.0,1.03334619]
[1641873608763,0.03603991,42307.0,42306.0,0.68334619]
[1641873608957,0.03603991,42307.0,42306.0,0.34063255]
[1641873609358,0.05889133,42307.0,42306.0,0.34063255]
[1641873609562,0.05889133,42307.0,42306.0,1.69192476]
[1641873609563,0.02285142,42307.0,42306.0,1.69192476]
[1641873609858,0.02285142,42307.0,42306.0,1.69063255]
[1641873610259,0.00922184,42307.0,42306.0,1.69063255]
[1641873610558,0.00922184,42307.0,42306.0,2.08107405]
[1641873610958,0.00922184,42307.0,42306.0,2.09507405]
[1641873611261,0.0175283,42313.0,42308.0,1.630085]
[1641873611459,0.0175283,42313.0,42312.0,0.280052]
[1641873611757,0.0175283,42313.0,42312.0,0.327352]
[1641873612358,0.0175283,42313.0,42312.0,0.60854988]
[1641873612600,0.0175283,42313.0,42312.0,0.327352]
[1641873613001,0.0175283,42313.0,42312.0,0.339352]
[1641873613502,0.0175283,42313.0,42312.0,0.759352]
[1641873613700,0.0175283,42313.0,42312.0,1.10576382]
[1641873614104,0.0175283,42313.0,42312.0,0.759352]
[1641873614304,0.0175283,42313.0,42306.0,0.00022655]
[1641873614502,0.00129166,42310.0,42306.0,0.00022655]
[1641873614901,0.00129166,42310.0,42306.0,0.01422655]
[1641873614902,0.42943894,42309.0,42306.0,0.01422655]
[1641873615301,0.8178118,42308.0,42306.0,0.4317916]
[1641873615705,0.34077551,42308.0,42306.0,0.4317916]
[1641873616257,0.34077551,42308.0,42306.0,0.4177916]
[1641873617053,0.34877551,42308.0,42306.0,0.4297916]
[1641873618257,0.34077551,42308.0,42306.0,0.4177916]
[1641873618457,0.43931252,42310.0,42306.0,0.4177916]
[1641873618658,0.00129166,42310.0,42306.0,0.4177916]
[1641873618857,0.00043437,42311.0,42306.0,0.4177916]
[1641873619057,0.009,42310.0,42306.0,0.4297916]
[1641873619259,0.009,42310.0,42307.0,0.35891266]
[1641873619458,0.009,42310.0,42309.0,1.3]
[1641873619657,0.009,42310.0,42308.0,0.34037838]
[1641873619862,0.009,42310.0,42307.0,0.42]
[1641873620300,0.00048946,42311.0,42307.0,0.42]
[1641873620703,0.00048946,42311.0,42306.0,0.04752655]
[1641873620704,0.00177622,42311.0,42306.0,0.04752655]
[1641873620903,0.06088018,42311.0,42306.0,0.00022655]
[1641873621104,0.06088132,42311.0,42307.0,0.014]
[1641873621302,0.610328,42310.0,42307.0,0.014]
[1641873621503,0.29837039,42309.0,42307.0,0.014]
[1641873621703,0.370328,42308.0,42307.0,0.014]
[1641873621903,0.420328,42308.0,42307.0,0.014]
[1641873622104,0.05,42308.0,42307.0,0.014]
[1641873622406,0.05,42308.0,42304.0,0.33286809]
[1641873622604,0.34837039,42309.0,42304.0,0.33286809]
[1641873622807,0.29837039,42309.0,42304.0,0.33286809]
[1641873623004,0.29837039,42309.0,42304.0,0.34386809]
[1641873624052,0.34837039,42309.0,42304.0,0.34386809]
[1641873624253,0.29337039,42309.0,42304.0,0.34386809]
[1641873624853,0.29337039,42309.0,42304.0,0.33286809]
[1641873625055,0.29337039,42309.0,42304.0,0.34786809]
[1641873626354,0.24,42310.0,42305.0,0.31923391]
[1641873626955,0.24,42310.0,42305.0,0.014]
[1641873627156,0.24,42310.0,42306.0,0.00022655]
[1641873627355,0.26291447,42309.0,42306.0,0.00022655]
[1641873629005,0.26291447,42309.0,42306.0,0.01422655]
[1641873630309,0.31291447,42309.0,42306.0,0.00022655]
[1641873630615,0.31291447,42309.0,42290.0,0.686005]
[1641873630616,0.05911046,42305.0,42289.0,0.00127747]
[1641873630811,0.05911046,42305.0,42286.0,0.58942362]
[1641873630812,0.77249234,42304.0,42286.0,0.58942362]
[1641873631009,0.17739567,42302.0,42286.0,0.58942362]
[1641873631263,0.17739567,42302.0,42278.0,1.37784842]
[1641873631264,0.65256494,42293.0,42290.0,0.44396487]
[1641873631458,0.33237474,42293.0,42290.0,0.44396487]
[1641873631657,0.38237474,42293.0,42290.0,0.44396487]
[1641873631858,0.44150468,42293.0,42290.0,0.44396487]
[1641873632058,0.44150468,42293.0,42290.0,0.44468367]
[1641873632458,0.2956239,42292.0,42290.0,0.44468367]
[1641873632661,0.00712232,42292.0,42290.0,0.44468367]
[1641873633060,0.00712232,42292.0,42290.0,0.45568367]
[1641873633262,0.00712232,42292.0,42290.0,0.45496487]
[1641873634262,0.00125712,42300.0,42291.0,1.69920958]
[1641873634463,0.05910739,42307.0,42292.0,0.059108]
[1641873634661,0.2845,42309.0,42292.0,0.059108]
[1641873635108,0.26316164,42303.0,42298.0,0.30381469]
[1641873635312,0.4390987,42308.0,42299.0,0.33798124]
[1641873635508,0.4390987,42308.0,42299.0,0.75798124]
[1641873635709,0.05910811,42306.0,42299.0,0.75798124]
[1641873636711,0.28614183,42301.0,42299.0,0.75798124]
[1641873637008,0.05911437,42301.0,42299.0,0.75798124]
[1641873637207,0.05911437,42301.0,42299.0,0.76098124]
[1641873637712,0.05911437,42301.0,42291.0,0.00071922]
[1641873637713,0.00122445,42300.0,42291.0,0.00071922]
[1641873637913,0.00123743,42292.0,42291.0,0.00071922]
[1641873638110,0.00123743,42292.0,42291.0,0.0007192]
[1641873638765,0.32974534,42292.0,42291.0,0.0007192]
[1641873639161,0.00123743,42292.0,42291.0,0.0127192]
[1641873639361,0.00123743,42292.0,42291.0,0.012]
[1641873640363,0.24,42292.0,42290.0,0.24189986]
[1641873640567,0.24,42292.0,42291.0,0.94491421]
[1641873641163,0.24,42292.0,42291.0,0.95591421]
[1641873641862,0.24,42292.0,42291.0,0.35591421]
[1641873642062,0.24,42292.0,42291.0,0.65591421]
[1641873642263,0.24,42292.0,42291.0,0.64491421]
[1641873642911,0.24,42292.0,42291.0,0.34491421]
[1641873643116,0.24,42292.0,42291.0,0.35591421]
[1641873643313,0.24,42292.0,42291.0,0.011]
[1641873643715,0.29,42292.0,42291.0,0.011]
[1641873644413,0.40826426,42292.0,42289.0,0.00071911]
[1641873644814,0.46739596,42292.0,42289.0,0.00071911]
[1641873645012,0.41739596,42292.0,42289.0,0.01171911]
[1641873645212,0.41739596,42292.0,42289.0,0.011]
[1641873645813,0.41739596,42292.0,42289.0,0.006]
[1641873646014,0.46739596,42292.0,42289.0,0.006]
[1641873646264,0.49221307,42292.0,42289.0,0.006]
[1641873646465,0.75126797,42290.0,42283.0,0.58942362]
[1641873646659,1.625328,42289.0,42283.0,0.58942362]
[1641873646858,0.00122636,42284.0,42283.0,0.58942362]
[1641873647260,1.01221023,42284.0,42281.0,0.0144]
[1641873647461,0.00120369,42282.0,42281.0,0.0144]
[1641873649062,0.00920369,42282.0,42281.0,0.0144]
[1641873649661,0.32605021,42282.0,42281.0,0.0144]
[1641873649862,0.69637821,42282.0,42281.0,0.0144]
[1641873650116,0.74637821,42282.0,42281.0,0.0144]
[1641873650314,0.73837821,42282.0,42281.0,0.0144]
[1641873650515,0.83837821,42282.0,42281.0,0.0144]
[1641873650922,0.73837821,42282.0,42281.0,0.0144]
[1641873651119,0.98437821,42282.0,42281.0,0.0144]
[1641873652320,0.98437821,42282.0,42281.0,0.01466212]
[1641873652321,0.97837821,42282.0,42281.0,0.01466212]
[1641873653120,0.98637821,42282.0,42281.0,0.01466212]
[1641873653520,0.98637821,42282.0,42281.0,0.00026212]
[1641873653777,0.98637821,42282.0,42269.0,0.58942362]
[1641873653778,0.7,42279.0,42269.0,0.58942362]
[1641873653964,0.00127865,42271.0,42269.0,0.58942362]
[1641873654164,0.00127865,42271.0,42267.0,0.58942362]
[1641873654464,0.00129794,42268.0,42267.0,0.58942362]
[1641873654663,0.57151302,42268.0,42267.0,0.58942362]
[1641873654863,0.57151302,42268.0,42261.0,0.004]
[1641873655063,0.05916871,42266.0,42261.0,0.004]
[1641873655666,0.63051302,42268.0,42261.0,0.004]
[1641873655667,0.35134622,42268.0,42261.0,0.004]
[1641873655865,0.06029794,42268.0,42261.0,0.004]
[1641873656067,0.059,42268.0,42261.0,0.004]
[1641873656265,0.009,42268.0,42261.0,0.004]
[1641873656665,0.009,42268.0,42262.0,0.27396664]
[1641873656864,0.009,42268.0,42263.0,0.26578864]
[1641873657066,0.009,42268.0,42264.0,0.37315581]
[1641873657266,0.009,42268.0,42264.0,0.46744581]
[1641873657513,0.009,42268.0,42265.0,0.0473]
[1641873657713,0.009,42268.0,42266.0,0.5913]
[1641873657913,0.009,42268.0,42267.0,1.7771407]
[1641873658112,0.00479025,42268.0,42267.0,0.37677233]
[1641873658312,0.30240251,42277.0,42267.0,0.37677233]
[1641873658912,0.05915294,42276.0,42267.0,0.37677233]
[1641873659112,0.30334543,42274.0,42267.0,0.37677233]
[1641873659714,0.30334543,42274.0,42269.0,0.00085314]
[1641873659921,0.00712528,42275.0,42270.0,0.29374519]
[1641873660814,0.00712528,42275.0,42270.0,0.04815312]
[1641873662060,0.24712528,42275.0,42270.0,0.04815312]
[1641873662959,0.24712528,42275.0,42273.0,0.27693327]
[1641873663559,0.24712528,42275.0,42273.0,0.32423327]
[1641873663763,0.24712528,42275.0,42273.0,0.27693327]
[1641873663960,0.24712528,42275.0,42274.0,1.26659464]
[1641873664160,0.24712528,42275.0,42274.0,1.65629062]
[1641873664161,0.24,42275.0,42274.0,1.65629062]
[1641873665010,0.24,42275.0,42274.0,0.75629062]
[1641873665211,0.24,42275.0,42274.0,0.41389464]
[1641873665913,0.24,42275.0,42274.0,0.71389464]
[1641873666810,0.24,42275.0,42274.0,0.41389464]
[1641873667411,0.24,42275.0,42274.0,0.76135337]
[1641873667710,0.24,42275.0,42274.0,0.41389464]
[1641873667910,0.24,42275.0,42274.0,0.71389464]
[1641873668111,0.12729047,42275.0,42274.0,0.71389464]
[1641873668312,0.12729047,42275.0,42274.0,0.41389464]
[1641873672710,0.12729047,42275.0,42274.0,0.76389464]
[1641873673113,0.12729047,42275.0,42274.0,0.41389464]
[1641873674913,0.12700579,42275.0,42274.0,0.41389464]
[1641873675313,0.12200579,42275.0,42274.0,0.86389464]
[1641873675515,0.12200579,42275.0,42274.0,0.41389464]
[1641873676561,0.00049268,42281.0,42275.0,1.35]
[1641873676765,0.00049268,42281.0,42280.0,1.37199863]
[1641873676959,0.00049268,42281.0,42280.0,1.6415311]
[1641873677160,0.00049268,42281.0,42280.0,1.7415311]
[1641873677359,0.00049268,42281.0,42280.0,1.82353585]
[1641873677561,0.00197021,42292.0,42280.0,1.3985992]
[1641873677762,0.0004927,42283.0,42282.0,0.03549186]
[1641873678061,0.0004927,42283.0,42282.0,1.48279186]
[1641873678462,0.0004927,42283.0,42282.0,2.27444724]
[1641873678861,0.32469764,42293.0,42282.0,2.5192531]
[1641873679060,0.32469764,42293.0,42286.0,0.059115]
[1641873679266,0.009484,42293.0,42288.0,0.059115]
[1641873679462,0.009484,42293.0,42289.0,0.0473]
[1641873680114,0.009484,42293.0,42289.0,0.36309726]
[1641873680314,0.009484,42293.0,42289.0,0.0473]
[1641873681113,0.009484,42293.0,42289.0,0.0593]
[1641873681314,0.25006212,42293.0,42289.0,0.0593]
[1641873682212,0.25054051,42293.0,42289.0,0.0593]
[1641873682414,0.25054051,42293.0,42289.0,0.0473]
[1641873682614,0.2503787,42293.0,42289.0,0.0473]
[1641873683015,0.2503787,42293.0,42289.0,0.106413]
[1641873683214,0.2503787,42293.0,42289.0,0.168413]
[1641873683861,0.2408947,42293.0,42292.0,1.09348164]
[1641873684062,0.2408947,42293.0,42292.0,0.0473]
[1641873684660,0.2408947,42293.0,42292.0,0.4973]